Workbook

Sheet Sheet1
A1: Indirect Cost Calculation Worksheet
A4: The following worksheet will automatically calculate the amount needed in Indirect Cost (BC80).
A5: Using the YTD Inception to Date report, input your information in the yellow boxes below.
A7: Indirect Cost Calculation | D7: Input Your Information Below
B9: Example
A10: Fund/Activity Total Balance | B10: $56,789.35 | D10: 0
A11: Encumbrances (if any) | B11: $1,514.79 | D11: 0
A12: Subtotal of Fund/Activity Balance + Encumbrance | B12: =B10+B11 -> $58,304.14 | D12: =D10+D11 -> 0
A13: Less BC 21 | B13: 0 | D13: 0
A14: Less BC 60 | B14: $1,000.00 | D14: 0
A15: Less BC 66 | B15: 0 | D15: 0
A16: Less other BC exclusions | B16: 0 | D16: 0
A17: Subtotal | B17: =B12-SUM(B13:B16) -> $57,304.14 | D17: =D12-SUM(D13:D16) -> 0
A18: Enter current F&A rate | B18: 10.0 | D18: 0.0
A19: -------------------------------------------------------------------------------------- | B19: =1+(B18/100) -> 1.100 | D19: =1+(D18/100) -> 1.000
A20: Direct Cost Subtotal | B20: =B17/B19 -> $52,094.67 | D20: =D17/D19 -> 0
A21: Indirect Cost Subtotal | B21: =B20*(B18/100) -> $5,209.47 | D21: =D20*(D18/100) -> 0
A22: Outstanding expenses for current period not yet posted | B22: $5,771.56 | D22: 0
A23: Outstanding IDC for current period not yet posted | B23: =B22*(B18/100) -> $577.16 | D23: =D22*(D18/100) -> 0
A24: Project IDC amount needed | B24: =B21+B23 -> $5,786.62 | D24: =D21+D23 -> 0
A25: BC80 Subtotal on ITD report | B25: $5,300.36 | D25: 0
A26: Variance* (see notes below) | B26: =B25-B24 -> $(486.26) | D26: =D25-D24 -> 0
A27: *If negative, process BEA to move funds from Direct Cost function (e.g., 44, 62, etc) to BC80
A28: *If positive, process BEA to move froms from BC80 to Direct Cost function (e.g., 44, 62, etc)
A30: Check and Balance | D30: Input Your Information Below
B32: Example
A33: Direct Cost Subtotal + BC exclusions | B33: =B20+SUM(B13:B16) -> $53,094.67 | D33: =D20+SUM(D13:D16) -> 0
A34: Outstanding IDC for current period not yet posted | B34: =B23 -> $577.16 | D34: =D23 -> 0
A35: Subtotal | B35: =B33-B34 -> $52,517.52 | D35: =D33-D34 -> 0
A36: Subtotal of Fund/Activity Balance + Encumbrance | B36: =B35+B24 -> $58,304.14 | D36: =D35+D24 -> 0
A39: Important Notes regarding Indirect Costs:
A40: In calculating the indirect cost allowable for a particular grant, note that indirect costs may vary from Sponsor to Sponsor.
A43: Indirect Costs on a Modified Total Direct Costs (MTDC) excludes Graduate Student Researcher Partial Fee Remission and Insurance (BC21), Equipment over $5K (BC60), and Subcontracts in excess of $25K (BC66).

Sheet Sheet2 (hidden)
A1: Fund/activity total balance | B1: $56,789.35 | F1: Budget Total | G1: 430,000.00
A2: Encumbrances | B2: $1,514.79 | F2: BC60 Budget | G2: 76,459.96
A3: Subtotal | B3: =SUM(B1:B2) -> $58,304.14 | F3: Add to BC60 Budget | G3: 1,000.00
A4: Less exclusion BC | B4: $1,000.00 | F4: Subtotal | G4: =G1-G2-G3 -> 352,540.04
A5: Subtotal | B5: =B3-B4 -> $57,304.14 | F5: DC | G5: =G4/1.1 -> 320,490.95
A6: Direct Cost | B6: =B5/1.1 -> $52,094.67 | F6: IDC | G6: =G5*0.1 -> 32,049.09 | H6: 32140 | I6: =G6-H6 -> (90.91)
A7: Indirect Cost | B7: =+B6*0.1 -> $5,209.47 | F7: Add BC60 | G7: =+G2+G3 -> 77,459.96
F8: Subtotal | G8: =G5+G6+G7 -> 430,000.00
A9: pending SCT | B9: $5,771.56 | D9: 64652.86
A10: pending IDC | B10: =B9*0.1 -> $577.16 | C10: less excluded BC | D10: 1000
D11: =D9-D10 -> 63652.86
C12: Direct Cost | D12: =D11/1.1 -> 57866.24
A13: Direct cost | B13: =B6+B9 -> $57,866.23 | C13: IDC | D13: =D12*0.1 -> 5786.62
A14: Indirect Cost | B14: =B7+B10 -> $5,786.62 | D14: =D21 -> $5,300.36
D15: =D14-D13 -> $(486.26)
A18: Double-check:
A19: Fund/activity total balance | B19: $56,789.35
A20: Encumbrances | B20: $1,514.79
A21: Subtotal | B21: =SUM(B19:B20) -> $58,304.14 | C21: BC80 sub on ITD | D21: $5,300.36
A22: pending SCT | B22: $5,771.56 | C22: Subtotal pending IDC + BC80 on ITD | D22: =D21+B23 -> $5,877.52
A23: pending IDC | B23: =B22*0.1 -> $577.16 | C23: Projected IDC | D23: =B14 -> $5,786.62
B24: =SUM(B21:B23) -> $64,652.86 | C24: Variance | D24: =D23-D22 -> $(90.89)
B25: =B9 -> $5,771.56
B26: =B10 -> $577.16 | D26: =D15+D24 -> $(577.16)
B27: =B2 -> $1,514.79
B28: =B24-SUM(B25:B27) -> $56,789.35
